bitfinex/quotes_ETHUSD_20250414
["timestamp","ask_amount","ask_price","bid_price","bid_amount"]
[1744617579542,10.61471,1635.0,1634.6,4.89401]
[1744617580260,0.7868,1634.5,1633.9,0.7992]
[1744617580547,0.7751,1634.7,1634.4,4.89476]
[1744617581279,0.7751,1634.7,1634.5,4.89432]
[1744617581433,0.7751,1634.8,1634.5,4.89432]
[1744617581635,0.7751,1634.8,1634.5,5.9550612]
[1744617581636,5.66869,1634.8,1634.5,5.9550612]
[1744617583254,5.66869,1634.8,1634.5,1.0607412]
[1744617583621,4.8932,1635.0,1634.7,4.89382]
[1744617583953,9.78636,1635.0,1634.6,5.71012]
[1744617584250,9.78636,1635.0,1634.6,6.87665012]
[1744617585555,4.89349,1634.9,1634.6,1.16653012]
[1744617585736,5.6543,1634.8,1634.6,1.16653012]
[1744617586328,5.6543,1634.8,1634.5,5.9551812]
[1744617586528,0.7607,1634.8,1634.5,6.0163513]
[1744617586763,5.65448,1634.8,1634.4,4.89473]
[1744617586961,5.65448,1634.8,1634.4,9.78933]
[1744617587257,0.7607,1634.8,1634.5,5.71483]
[1744617587573,0.7607,1634.8,1634.5,5.77600856]
[1744617587755,0.7607,1634.8,1634.5,5.71483]
[1744617587917,0.7607,1634.8,1634.6,0.571483]
[1744617588459,6.384,1635.0,1634.6,0.571483]
[1744617588460,0.7955,1635.0,1634.7,4.89357]
[1744617588899,5.71966,1635.2,1634.8,5.64456]
[1744617589064,0.8272,1635.2,1634.9,4.89314]
[1744617589394,5.71967,1635.2,1634.8,5.64456]
[1744617589688,5.71967,1635.2,1634.9,0.564456]
[1744617589895,10.61221,1635.2,1634.9,0.564456]
[1744617590059,4.89271,1635.1,1634.7,4.89383]
[1744617590247,4.89271,1635.1,1634.7,10.56592]
[1744617590691,4.89271,1635.1,1634.7,5.67209]
[1744617591486,4.89271,1635.1,1634.7,10.5658]
[1744617591792,4.89271,1635.1,1634.8,5.95013]
[1744617591995,4.89271,1635.1,1634.8,1.05658]
[1744617592989,4.89306,1635.0,1634.7,0.7784]
[1744617593197,0.7535,1634.9,1634.6,5.465613]
[1744617593483,0.7535,1634.9,1634.6,10.359663]
[1744617593848,0.7535,1634.9,1634.6,5.465533]
[1744617594251,5.64681,1634.9,1634.6,5.465533]
[1744617595490,0.7535,1634.9,1634.6,4.9551858]
[1744617595687,0.7535,1634.9,1634.7,4.89382]
[1744617595855,0.7535,1634.9,1634.6,4.9551558]
[1744617597793,0.7535,1634.9,1634.6,4.89399]
[1744617598094,0.7535,1634.9,1634.6,4.95515934]
[1744617598396,0.7535,1634.9,1634.6,5.95581893]
[1744617598606,4.89306,1635.0,1634.6,10.91097827]
[1744617598784,4.89306,1635.0,1634.6,10.84980893]
[1744617599303,4.89328,1634.9,1634.6,10.84987893]
[1744617599606,4.89328,1634.9,1634.6,5.95581893]
[1744617600228,4.89306,1635.0,1634.6,10.84986893]
[1744617600407,0.7831,1635.1,1634.8,4.89341]
[1744617600722,10.56863,1635.1,1634.7,5.66751]
[1744617601075,10.56875,1635.1,1634.7,5.66751]
[1744617601311,4.893,1635.0,1634.7,5.66751]
[1744617601510,5.67579,1635.1,1634.7,5.66751]
[1744617601714,5.67579,1635.1,1634.7,5.6674]
[1744617601914,4.89297,1635.0,1634.7,0.7737]
[1744617602502,4.89297,1635.0,1634.7,4.89385]
[1744617602706,5.67576,1635.1,1634.7,4.89385]
[1744617602905,4.89306,1635.0,1634.7,4.89385]
[1744617603624,4.89306,1635.0,1634.6,14.72778252]
[1744617603827,4.89306,1635.0,1634.7,1.47277825]
[1744617604428,4.89306,1635.0,1634.7,6.36662825]
[1744617604629,4.89306,1635.0,1634.6,5.64656]
[1744617604925,4.89312,1635.0,1634.7,0.06116728]
[1744617605087,5.67146,1634.8,1634.7,0.06116728]
[1744617605291,4.89428,1634.6,1634.4,6.384]
[1744617605501,4.89506,1634.3,1634.0,0.7722]
[1744617605726,4.89477,1634.4,1634.0,5.66815]
[1744617605923,4.89476,1634.4,1634.0,5.66793]
[1744617606240,4.89361,1634.8,1634.4,4.89456]
[1744617606387,0.8194,1634.9,1634.4,0.88189136]
[1744617606591,3.799,1635.1,1634.5,5.71253]
[1744617606811,4.89359,1634.8,1634.5,0.8182]
[1744617607017,3.799,1635.1,1634.4,5.77656136]
[1744617607018,0.7839,1634.7,1634.4,0.88189136]
[1744617607200,5.67803,1634.7,1634.3,7.2]
[1744617607402,4.89418,1634.6,1634.3,7.2]
[1744617607639,5.67783,1634.7,1634.3,12.15609576]
[1744617607923,0.7839,1634.7,1634.4,4.89475]
[1744617608137,5.67777,1634.7,1634.4,6.59984391]
[1744617608304,5.67777,1634.7,1634.4,1.70509391]
[1744617608714,10.57193,1634.7,1634.4,1.70509391]
[1744617608917,10.57193,1634.7,1634.3,12.09489]
[1744617609114,4.89416,1634.6,1634.3,7.2]
[1744617610156,4.89329,1634.9,1634.5,4.89444]
[1744617610296,4.89267,1635.1,1634.6,5.76903187]
[1744617610502,5.69357,1635.1,1634.7,4.89375]
[1744617611419,5.69357,1635.1,1634.6,6.65864042]
[1744617611590,4.8931,1635.0,1634.6,6.59746855]
[1744617611841,4.8931,1635.0,1634.6,6.6586346]
[1744617612040,5.2981757,1635.3,1634.9,4.89309]
[1744617612204,6.1037757,1635.3,1634.9,10.55006]
[1744617612535,0.4058257,1635.3,1635.1,4.89241]
[1744617613026,0.4058257,1635.3,1635.0,9.78588]
[1744617613332,0.4058257,1635.3,1635.1,4.95367754]
[1744617613516,0.4058257,1635.3,1635.2,5.68716]
[1744617613723,0.4058257,1635.3,1635.2,6.26199075]
[1744617614025,0.4058257,1635.3,1635.2,0.7948]
[1744617614229,0.4058257,1635.3,1634.9,4.89325]
[1744617614430,0.4058257,1635.3,1635.0,0.06115159]
[1744617614595,0.4058257,1635.3,1635.1,5.70994]
[1744617614998,0.4058257,1635.3,1635.2,4.9535115]
[1744617615199,0.4058257,1635.3,1635.2,18.99106533]
[1744617615394,0.05,1635.4,1635.3,5.69246]
[1744617617804,0.005,1636.2,1636.0,4.88995]
[1744617618117,0.005,1636.2,1636.1,8.78002359]
[1744617618430,0.005,1636.2,1636.1,18.21812968]
[1744617618617,0.005,1636.2,1636.1,14.54390525]
[1744617619915,0.005,1636.2,1636.1,15.11380525]
[1744617620114,0.005,1636.2,1636.1,14.56380525]
[1744617622661,0.005,1636.2,1636.1,18.23905884]
[1744617623024,0.005,1636.2,1636.1,15.11380525]
[1744617623221,0.005,1636.2,1636.1,18.23905884]
[1744617625260,0.005,1636.9,1636.6,4.88809]
[1744617625431,0.005,1636.9,1636.8,8.76733359]
[1744617625858,0.005,1636.9,1636.8,8.01283359]
[1744617626063,0.005,1636.9,1636.8,4.88758]
[1744617626263,0.05,1637.4,1637.3,4.88609]
[1744617628456,0.05,1637.4,1637.2,4.88626]
[1744617628650,0.783,1637.3,1637.1,4.8865]
[1744617628956,0.05,1637.4,1636.8,10.27735359]
[1744617629185,0.7629,1637.3,1636.9,4.88715]
[1744617629486,0.7629,1637.3,1636.9,4.8871]
[1744617629799,12.0213,1637.2,1636.7,4.88787]
[1744617630000,1.20213,1637.1,1636.8,4.88742]
[1744617630184,1.20213,1637.1,1636.8,4.88738]
[1744617630702,1.20213,1637.1,1637.0,4.88698]
[1744617631192,1.20213,1637.1,1636.9,9.77452]
[1744617631388,1.20213,1637.1,1636.9,4.88726]
[1744617631554,1.20213,1637.1,1636.7,4.88768]
[1744617631755,1.20213,1637.1,1636.8,4.88746]
[1744617631951,1.20213,1637.1,1636.8,4.88739]
[1744617632154,1.20213,1637.1,1636.9,4.88717]
[1744617632398,0.8722,1637.4,1637.1,4.88668]
[1744617632733,0.8722,1637.4,1637.2,4.88616]
[1744617633051,5.75801,1637.4,1637.0,8.01222359]
[1744617633251,5.64735,1637.3,1636.9,4.88708]
[1744617633488,0.564735,1637.2,1636.8,4.94862954]
[1744617633705,0.564735,1637.2,1636.8,4.94849954]
[1744617634071,5.451275,1637.2,1636.8,4.94854954]
[1744617634301,0.564735,1637.2,1636.8,9.83595954]
[1744617634605,0.564735,1637.2,1636.9,4.88722]
[1744617634812,5.451265,1637.2,1636.8,4.94848954]
[1744617635115,0.5451265,1637.1,1636.8,9.83590954]
[1744617635616,0.5451265,1637.1,1636.8,4.94848954]
[1744617636495,0.7935,1637.0,1636.8,0.06107954]
[1744617636826,5.6806,1637.0,1636.6,4.88806]
[1744617637218,4.88728,1636.9,1636.5,4.88846]
[1744617637417,0.8049,1636.8,1636.5,4.88846]
[1744617637783,5.69259,1636.8,1636.4,4.88875]
[1744617637986,4.88801,1636.7,1636.3,4.88907]
[1744617638388,0.8236,1636.6,1636.2,4.88937]
[1744617638590,4.88862,1636.5,1636.1,4.88964]
[1744617638790,0.7843,1636.4,1636.0,9.77988]
[1744617639016,0.7843,1636.4,1635.8,8.86173661]
[1744617639017,4.88922,1636.3,1635.9,4.89027]
[1744617639298,4.88922,1636.3,1635.9,4.8901]
[1744617639497,0.7843,1636.2,1635.9,4.8901]
[1744617639797,5.67368,1636.2,1635.9,4.8901]
[1744617640125,6.72997,1636.2,1635.8,4.89049]
[1744617640438,4.88999,1636.0,1635.6,4.89115]
[1744617640924,0.8111,1635.9,1635.6,4.89115]
[1744617641787,0.8111,1635.9,1635.5,4.89144]
[1744617641994,4.89068,1635.8,1635.4,4.89175]
[1744617642208,4.89092,1635.7,1635.3,4.89203]
[1744617642404,0.7927,1635.6,1635.3,4.89203]
[1744617642622,0.7927,1635.6,1635.2,4.89219]
[1744617642935,5.68406,1635.6,1635.2,4.89219]
[1744617643120,4.89165,1635.5,1635.1,4.89264]
[1744617643317,4.89165,1635.5,1635.1,9.73517]
[1744617643528,4.89165,1635.5,1635.1,9.79632125]
[1744617643748,4.89165,1635.5,1635.1,4.90379125]
[1744617644025,0.7522,1635.3,1635.0,4.89294]
[1744617644246,0.7522,1635.3,1634.9,8.10952661]
[1744617644247,0.7522,1635.3,1634.9,3.21627661]
[1744617644444,0.7522,1635.3,1635.0,4.89296]
[1744617644745,0.7522,1635.3,1635.0,9.78592]
[1744617645093,0.7522,1635.3,1635.1,4.89259]
[1744617645997,0.7522,1635.3,1635.0,4.89295]
[1744617646835,5.64437,1635.3,1634.9,4.89325]
[1744617647032,0.7522,1635.3,1634.8,3.0]
[1744617647220,3.0,1635.8,1635.4,4.89165]
[1744617647527,0.8251,1635.7,1635.4,4.89176]
[1744617647695,0.8251,1635.7,1635.6,4.89117]
[1744617647896,1.345509,1635.9,1635.6,4.89117]
[1744617648228,0.7754,1635.9,1635.7,4.89075]
[1744617648396,0.7754,1635.9,1635.6,4.89102]
[1744617649008,0.7754,1635.9,1635.7,4.89083]
[1744617649219,0.7754,1635.9,1635.7,9.78166]
[1744617649420,0.7754,1635.9,1635.7,4.89083]
[1744617649618,0.7754,1635.9,1635.8,4.89057]
[1744617649826,0.7754,1635.9,1635.7,4.89083]
[1744617650126,0.7754,1635.9,1635.6,4.89115]
[1744617650997,6.528,1636.1,1635.8,4.89057]
[1744617651225,7.2889,1636.1,1635.8,4.89057]
[1744617651641,17.06848,1636.1,1635.7,4.89086]
[1744617651841,12.17857,1636.1,1635.7,4.89086]
[1744617652040,14.290997,1636.1,1635.7,4.89075]
[1744617652343,14.290997,1636.1,1635.8,4.89056]
[1744617652723,9.401327,1636.1,1635.8,4.89056]
[1744617653038,19.181067,1636.1,1635.7,4.89082]
[1744617653241,14.291117,1636.1,1635.7,4.89082]
[1744617654339,4.89,1636.0,1635.7,4.89082]
[1744617654837,7.763117,1636.1,1635.8,4.8905]
[1744617655524,12.652997,1636.1,1635.7,4.89075]
[1744617655829,12.652997,1636.1,1635.6,5.869388]
[1744617655830,9.78019,1636.0,1635.6,5.869388]
[1744617656041,0.7609,1636.1,1635.8,4.89038]
[1744617656949,6.9598,1636.4,1636.1,4.88954]
[1744617657114,5.67858,1636.4,1636.0,4.88997]
[1744617657322,4.88922,1636.3,1636.0,4.88987]
[1744617657640,5.67858,1636.4,1636.0,4.88987]
[1744617657955,4.88918,1636.3,1635.9,4.89026]
[1744617658160,0.76,1636.2,1635.6,5.71397]
[1744617658458,5.64948,1636.2,1635.8,4.89045]
[1744617658816,4.88973,1636.1,1635.8,4.89045]
[1744617659016,4.88973,1636.1,1635.7,4.89077]
[1744617659217,4.88973,1636.1,1635.7,5.868946]
[1744617659426,4.89012,1636.0,1635.6,4.89099]
[1744617659622,0.7959,1635.9,1635.6,9.84315111]
[1744617659819,0.7959,1635.9,1635.6,4.95212111]
[1744617660047,0.7959,1635.9,1635.6,9.84316111]
[1744617660448,0.7959,1635.9,1635.7,4.89086]
[1744617660624,0.7959,1635.9,1635.6,4.95216111]
[1744617661027,0.7959,1635.9,1635.6,9.84316111]
[1744617661247,0.7959,1635.9,1635.7,4.89073]
[1744617661744,0.7959,1635.9,1635.6,11.48058722]
[1744617661933,0.7959,1635.9,1635.6,4.891]
[1744617662115,0.7959,1635.9,1635.6,9.78201]
[1744617662443,0.7959,1635.9,1635.6,4.891]
[1744617662655,4.89101,1635.7,1635.3,4.89201]
[1744617662839,4.89164,1635.5,1635.1,4.89248]
[1744617663015,4.89164,1635.5,1635.1,4.95363103]
[1744617663217,9.78329,1635.5,1635.1,4.95363103]
[1744617663441,9.78329,1635.5,1635.1,4.89248]
[1744617663637,4.89177,1635.4,1635.1,4.89248]
[1744617664259,0.8332,1635.3,1635.1,4.89248]
[1744617666347,0.8332,1635.3,1635.0,4.89285]
[1744617666560,0.8332,1635.3,1634.9,4.89296]
[1744617666882,4.89243,1635.2,1634.8,9.84811873]
[1744617667784,1.061771,1635.2,1634.8,4.95460873]
[1744617667989,1.061771,1635.2,1634.9,4.89297]
[1744617668155,0.8332,1635.3,1635.1,4.89266]
[1744617668341,0.8332,1635.3,1635.0,4.89292]
[1744617668540,0.8332,1635.3,1635.0,9.78571]
[1744617668740,0.8332,1635.3,1635.1,4.89253]
[1744617669476,0.8332,1635.3,1635.1,4.89254]
[1744617669682,0.8332,1635.3,1635.0,4.89279]
[1744617669882,5.72529,1635.3,1634.9,4.89322]
[1744617670045,6.787019,1635.3,1634.9,4.89322]
[1744617670684,1.894929,1635.3,1634.9,4.89316]
[1744617670893,6.787139,1635.3,1634.9,4.89316]
[1744617671045,6.787139,1635.3,1634.9,4.89312]
[1744617671244,4.89238,1635.2,1634.9,4.89312]
[1744617671446,11.679479,1635.3,1634.9,4.89312]
[1744617671669,6.787139,1635.3,1634.9,4.89312]
[1744617672209,6.787139,1635.3,1635.0,4.89293]
[1744617672701,7.3587,1635.5,1635.3,4.89205]
[1744617672860,7.3587,1635.5,1635.2,4.89223]
[1744617673279,12.25021,1635.5,1635.2,4.89223]
[1744617673472,12.25021,1635.5,1635.0,9.78577]
[1744617673769,12.25021,1635.5,1635.0,4.95396167]
[1744617673770,7.3587,1635.5,1635.0,4.95396167]
[1744617673964,4.89197,1635.4,1635.0,4.89281]
[1744617674300,9.78402,1635.4,1635.0,4.89281]
[1744617674599,4.89238,1635.2,1634.9,4.89326]
[1744617674908,5.68516,1635.3,1634.9,4.95441869]
[1744617675072,5.68516,1635.3,1634.9,9.84737869]
[1744617675394,5.68516,1635.3,1634.9,4.95426869]
[1744617675577,10.5774,1635.3,1634.9,4.95426869]
[1744617675974,4.89238,1635.2,1634.9,4.89311]
[1744617676178,4.89238,1635.2,1634.9,4.95426873]
[1744617676479,5.68516,1635.3,1634.9,4.89311]
[1744617676677,10.57742,1635.3,1634.9,4.89311]
[1744617676879,0.7931,1635.3,1634.9,4.89326]
[1744617677080,0.7931,1635.3,1634.9,5.38870187]
[1744617677383,5.68526,1635.3,1634.9,10.28196187]
[1744617677567,10.57752,1635.3,1634.9,5.38870187]
[1744617678196,4.89237,1635.2,1634.9,5.38870187]
[1744617678577,4.89239,1635.2,1634.9,5.38870187]
[1744617679192,10.57761,1635.3,1634.9,5.38858187]
[1744617679385,4.89237,1635.2,1634.8,4.89353]
[1744617679707,9.78493,1635.2,1634.8,4.89353]
[1744617680094,9.78493,1635.2,1634.8,4.95469167]
[1744617680306,4.89268,1635.1,1634.8,4.89353]
[1744617682120,4.89268,1635.1,1634.7,10.54092]
[1744617682308,9.78554,1635.1,1634.7,6.95045612]
[1744617682825,4.89341,1634.9,1634.6,2.49254116]
[1744617683117,4.8937,1634.8,1634.6,2.49254116]
[1744617684889,9.78692,1634.9,1634.6,2.49254116]
[1744617685120,0.7744,1635.0,1634.7,4.89377]
[1744617685332,6.46,1635.1,1634.8,4.89342]
[1744617685690,11.35268,1635.1,1634.8,4.89342]
[1744617685902,4.89319,1635.0,1634.6,8.14586116]
[1744617686124,4.89319,1635.0,1634.6,8.20702904]
[1744617686638,9.78645,1635.0,1634.6,8.20702904]
[1744617686927,4.89333,1634.9,1634.6,8.20702904]
[1744617687291,4.89319,1635.0,1634.6,8.20692904]
[1744617687497,13.671653,1635.1,1634.7,4.89373]
[1744617687897,18.564563,1635.1,1634.7,4.89373]
[1744617688637,4.89303,1635.0,1634.7,4.89373]
[1744617688798,4.89286,1635.1,1634.7,4.8937]
[1744617689147,4.89286,1635.1,1634.6,8.14585116]
[1744617689148,9.78621,1635.0,1634.6,8.14585116]
[1744617689335,4.89307,1635.0,1634.6,13.03990116]
[1744617689636,9.78626,1635.0,1634.6,9.44978128]
[1744617689844,0.7954,1634.9,1634.6,8.14579116]
[1744617690018,5.68885,1634.9,1634.6,2.49254116]
[1744617690431,5.68885,1634.9,1634.6,7.38670116]
[1744617690842,5.68885,1634.9,1634.6,2.49254116]
[1744617690843,4.89386,1634.7,1634.6,2.49254116]
[1744617691013,5.68926,1634.7,1634.6,2.49254116]
[1744617691218,7.236911,1634.7,1634.6,2.49254116]
[1744617693845,7.786911,1634.7,1634.6,2.49254116]
[1744617694412,16.956911,1634.7,1634.6,2.49254116]
[1744617694940,5.69064,1634.3,1634.1,0.05]
[1744617695147,4.89536,1634.2,1634.1,0.05]
[1744617695534,10.58589,1634.3,1634.1,0.05]
[1744617696349,4.89536,1634.2,1634.1,0.05]
[1744617697255,5.69064,1634.3,1634.1,0.05]
[1744617697256,10.58594,1634.3,1634.1,0.05]
[1744617698157,10.58589,1634.3,1634.1,0.05]
[1744617698327,5.69064,1634.3,1634.1,0.05]
[1744617698958,10.58595,1634.3,1634.1,0.05]
[1744617699454,10.58596,1634.3,1634.1,0.05]
[1744617699656,11.644556,1634.3,1634.1,0.05]
[1744617699862,6.749236,1634.3,1634.1,0.05]
[1744617700155,11.644476,1634.3,1634.1,0.05]
[1744617700369,4.89536,1634.2,1634.1,0.05]
[1744617700554,6.21866,1634.2,1634.1,0.05]
[1744617700856,1.058596,1634.3,1634.1,0.05]
[1744617701031,4.89536,1634.2,1634.1,0.05]
[1744617701237,4.89534,1634.3,1634.1,0.05]
[1744617701436,4.89523,1634.3,1634.1,0.05]
[1744617701853,4.89536,1634.2,1634.1,0.05]
[1744617705290,9.22456,1634.2,1634.1,0.05]
[1744617705476,10.636534,1634.2,1634.1,0.05]
[1744617705673,13.76022111,1634.2,1634.1,0.05]
[1744617705850,19.93022111,1634.2,1634.1,0.05]
[1744617706958,20.23130422,1634.2,1634.1,0.05]
[1744617707288,4.89767,1633.5,1633.2,0.55]
[1744617707444,5.44669,1633.8,1633.4,0.7806]
[1744617707445,4.89698,1633.7,1633.4,0.7806]
[1744617708393,6.383,1633.8,1633.5,4.89733]
[1744617709550,11.27956,1633.8,1633.5,4.89733]
[1744617709754,11.27956,1633.8,1633.4,5.67833]
[1744617710150,11.27956,1633.8,1633.4,5.67818]
[1744617710355,16.1763,1633.8,1633.4,6.55836671]
[1744617710654,11.27956,1633.8,1633.4,6.55836671]
[1744617711379,4.89726,1633.6,1633.2,5.44833]
[1744617711591,4.89757,1633.5,1633.2,1.3488]
[1744617711766,9.79524,1633.5,1633.2,1.3488]
[1744617711968,4.89757,1633.5,1633.2,1.3488]
[1744617712287,9.79463,1633.6,1633.2,6.24703]
[1744617712589,0.7548,1633.7,1633.2,1.3488]
[1744617712803,5.65176,1633.7,1633.3,4.89786]
[1744617713297,4.89717,1633.6,1633.3,4.89786]
[1744617713509,4.89717,1633.6,1633.2,6.24702]
[1744617713786,5.65169,1633.7,1633.3,4.89804]
[1744617713987,4.89689,1633.7,1633.3,5.52870606]
[1744617714207,11.27959,1633.8,1633.2,1.4100206]
[1744617714384,9.79528,1633.5,1633.2,1.3488]
[1744617714709,9.7952,1633.5,1633.2,1.3488]
[1744617714857,4.8972,1633.6,1633.2,1.3488]
[1744617715058,4.89748,1633.5,1633.2,1.3488]
[1744617715413,4.89792,1633.4,1633.2,1.3488]
[1744617716405,4.89792,1633.4,1633.2,0.7988]
[1744617716781,4.89749,1633.5,1633.2,0.7988]
[1744617717094,9.79519,1633.5,1633.2,0.7988]
[1744617717314,4.89749,1633.5,1633.2,0.7988]
[1744617717486,4.89778,1633.4,1633.2,0.7988]
[1744617718405,4.89699,1633.7,1633.3,0.7506]
[1744617718686,4.89685,1633.7,1633.3,0.7506]
[1744617718877,4.89775,1633.4,1633.2,3.95158711]
[1744617719494,9.79568,1633.4,1633.2,0.8279]
[1744617719741,4.89805,1633.3,1633.1,0.8006]
[1744617720737,4.89754,1633.5,1633.1,8.13350525]
[1744617720909,4.89795,1633.4,1633.1,3.23491525]
[1744617721229,9.79635,1633.3,1633.1,0.05]
[1744617721427,4.89835,1633.2,1633.1,0.05]
[1744617721589,4.89806,1633.3,1633.1,0.05]
[1744617721790,10.285705,1633.4,1633.1,0.05]
[1744617721994,5.387725,1633.4,1633.1,0.05]
[1744617722431,4.89793,1633.4,1633.1,0.11123146]
[1744617722637,4.89793,1633.4,1633.1,0.05]
[1744617722810,4.89808,1633.3,1633.1,0.05]
[1744617723835,4.89835,1633.2,1633.1,0.05]
[1744617724603,8.02203711,1633.2,1633.1,0.05]
[1744617724827,14.36188882,1633.2,1633.1,0.05]
[1744617725404,20.53188882,1633.2,1633.1,1e-05]
[1744617726329,20.53188882,1633.2,1632.2,0.7777]
[1744617726330,4.90083,1632.4,1632.2,0.7777]
[1744617726551,4.90023,1632.6,1632.2,0.7777]
[1744617726831,4.90028,1632.6,1632.4,0.7916]
[1744617727010,4.90077,1632.4,1632.2,0.8044]
[1744617727208,4.90017,1632.6,1632.2,0.86565967]
[1744617727412,4.90073,1632.5,1632.2,0.86565967]
[1744617727612,4.90026,1632.6,1632.3,4.90105]
[1744617727815,4.90077,1632.4,1632.2,1.69848168]
[1744617728138,4.90077,1632.4,1632.2,0.8044]
[1744617728306,4.90048,1632.5,1632.2,0.8044]
[1744617729230,5.70159,1632.6,1632.1,0.8096]
[1744617729231,4.90089,1632.4,1632.1,0.8096]
[1744617729441,0.8014,1632.6,1632.1,0.87086447]
[1744617729624,7.176,1632.7,1632.2,3.89088711]
[1744617729826,7.8936,1632.7,1632.2,3.89088711]
[1744617730004,4.90066,1632.5,1632.2,3.89088711]
[1744617730209,4.90018,1632.6,1632.3,0.7672]
[1744617730405,4.89882,1633.1,1632.6,0.7672]
[1744617730702,4.89882,1633.1,1632.9,0.7591]
[1744617730703,4.89876,1633.1,1632.9,0.7591]
[1744617730909,4.89895,1633.0,1632.9,0.7591]
[1744617731109,4.89895,1633.0,1632.6,8.02367711]
[1744617731110,4.89895,1633.0,1632.7,0.7804]
[1744617731453,4.89928,1632.9,1632.7,0.7804]
[1744617731607,4.89895,1633.0,1632.7,0.7804]
[1744617731951,4.89895,1633.0,1632.7,5.68017]
[1744617732131,4.89895,1633.0,1632.7,0.7804]
[1744617732306,4.89895,1633.0,1632.7,5.68021]
[1744617733143,4.89866,1633.1,1632.7,5.68021]
[1744617733349,9.79754,1633.1,1632.7,5.68021]
[1744617734351,4.89866,1633.1,1632.7,11.99577441]
[1744617734559,4.89866,1633.1,1632.8,4.96073748]
[1744617734730,4.89866,1633.1,1632.7,7.09596441]
[1744617734943,12.0415,1633.3,1632.7,2.19628441]
[1744617735265,4.89919,1633.0,1632.7,0.7804]
[1744617735762,4.89932,1632.9,1632.7,0.7804]
[1744617737254,4.89972,1632.8,1632.6,0.7943]
[1744617738063,9.79947,1632.8,1632.4,5.67285]
[1744617738239,4.89955,1632.8,1632.4,0.7721]
[1744617738438,4.90062,1632.5,1632.2,0.7721]
[1744617738737,9.80183,1632.4,1632.2,0.7721]
[1744617739347,9.80124,1632.5,1632.2,0.7721]
[1744617739545,4.90034,1632.6,1632.2,5.67336]
[1744617739747,4.90034,1632.6,1632.2,10.57461]
[1744617739953,9.80068,1632.6,1632.2,5.67335]
[1744617740259,4.89987,1632.7,1632.2,2.14696771]
[1744617740463,4.89987,1632.7,1632.4,4.90074]
[1744617740649,4.89987,1632.7,1632.5,0.7687]
[1744617740838,16.1873,1632.8,1632.5,0.7687]
[1744617741041,4.89986,1632.7,1632.5,0.7687]
[1744617741251,4.89989,1632.7,1632.5,0.7687]
[1744617741737,9.79993,1632.7,1632.5,0.7687]
[1744617741938,4.89989,1632.7,1632.5,0.7687]
[1744617742175,4.90105,1632.4,1632.1,0.853]
[1744617742374,4.90108,1632.3,1632.1,0.853]
[1744617742773,4.90105,1632.4,1632.1,0.853]
[1744617742938,4.9012,1632.3,1632.1,0.05]
[1744617743135,4.90136,1632.2,1632.1,0.05]
[1744617743350,5.881616,1632.2,1632.1,0.05]
[1744617743768,4.9012,1632.3,1632.1,0.05]
[1744617744362,9.80246,1632.3,1632.1,0.05]
[1744617744566,11.28879,1632.4,1632.1,0.05]
[1744617744748,9.80176,1632.4,1632.1,0.05]
[1744617744954,4.90106,1632.3,1632.1,0.05]
[1744617747249,9.8023,1632.3,1632.1,0.05]
[1744617747862,9.80233,1632.3,1632.1,0.05]
[1744617748050,5.88129,1632.3,1632.1,0.05]
[1744617748251,4.90079,1632.4,1632.1,0.05]
[1744617748750,4.90107,1632.3,1632.1,0.05]
[1744617748979,9.80235,1632.3,1632.1,0.05]
[1744617749474,4.90107,1632.3,1632.1,0.05]
[1744617749976,12.1111,1632.6,1632.1,0.05]
[1744617749977,9.80168,1632.4,1632.1,0.05]
[1744617750189,4.9008,1632.4,1632.1,0.05]
[1744617750946,4.90108,1632.3,1632.1,0.05]
[1744617751152,4.90048,1632.5,1632.1,4.95155]
[1744617751379,14.66439361,1632.6,1632.2,4.90131]
[1744617751566,13.84249361,1632.6,1632.3,0.77]
[1744617752079,12.198689,1632.7,1632.3,5.67093]
[1744617752279,12.08889,1632.9,1632.5,4.90043]
[1744617752451,12.08889,1632.9,1632.6,0.7766]
[1744617752452,11.28939,1632.9,1632.6,0.7766]
[1744617752652,4.89939,1632.9,1632.6,0.7766]
[1744617753050,5.72739,1633.0,1632.6,0.7766]
[1744617753051,5.72739,1633.0,1632.6,5.67672]
[1744617753266,11.28868,1633.1,1632.7,4.89969]
[1744617753690,4.89896,1633.0,1632.7,4.89969]
[1744617754188,11.28868,1633.1,1632.7,4.89969]
[1744617754396,16.18754,1633.1,1632.7,4.89969]
[1744617754581,4.89896,1633.0,1632.7,4.89969]
[1744617756388,4.89896,1633.0,1632.7,5.36010713]
[1744617756893,4.89896,1633.0,1632.7,0.46041713]
[1744617757058,4.89896,1633.0,1632.6,10.57688]
[1744617757264,11.28868,1633.1,1632.7,4.89985]
[1744617757892,4.89902,1633.0,1632.7,4.89985]
[1744617758363,11.28868,1633.1,1632.7,4.89985]
[1744617758794,16.18751,1633.1,1632.7,4.89985]
[1744617758994,4.89902,1633.0,1632.7,4.89985]
[1744617760697,16.18755,1633.1,1632.7,4.89985]
[1744617760873,17.884835,1633.1,1632.7,4.89985]
[1744617761068,8.087325,1633.1,1632.9,0.8249]
[1744617761290,12.985985,1633.1,1632.9,0.65142751]
[1744617762568,4.89895,1633.0,1632.9,0.65142751]
[1744617763169,12.985985,1633.1,1632.9,0.65142751]
[1744617764406,17.884895,1633.1,1632.9,0.65142751]
[1744617765299,12.985985,1633.1,1632.9,0.65142751]
[1744617765681,12.985985,1633.1,1632.7,11.03399206]
[1744617765878,17.884835,1633.1,1632.7,6.13425206]